bitfinex/quotes_ETHUSD_20260103
["timestamp","ask_amount","ask_price","bid_price","bid_amount"]
[1767445106299,0.00080112,3103.2,3102.4,2.32158157]
[1767445106541,2.30649636,3103.2,3102.4,2.32158157]
[1767445106745,2.621746,3103.2,3102.4,2.32158157]
[1767445107546,2.621746,3103.2,3102.5,2.32158157]
[1767445108042,0.31605076,3103.2,3102.5,2.32158157]
[1767445110251,0.31805076,3103.2,3102.5,2.32158157]
[1767445112553,0.0028012,3103.6,3103.1,2.87441329]
[1767445112752,0.0028012,3103.6,3102.9,2.87441329]
[1767445112753,0.846,3103.5,3102.9,2.87441329]
[1767445114251,0.846,3103.5,3103.0,2.87441329]
[1767445115050,0.00066013,3103.9,3103.6,2.87441329]
[1767445115242,0.846,3103.8,3103.2,0.00080128]
[1767445115555,0.846,3103.8,3103.2,2.87521457]
[1767445115729,0.846,3103.8,3103.2,6.09764881]
[1767445117067,2.95398616,3103.7,3103.2,0.00080128]
[1767445117235,3.33405079,3103.7,3103.2,0.00080128]
[1767445117438,3.33405079,3103.7,3102.8,2.87521449]
[1767445117664,2.95398616,3103.5,3102.8,2.87521449]
[1767445117863,2.95398616,3103.5,3102.8,0.0008012]
[1767445118025,3.2494649,3103.4,3102.8,0.0008012]
[1767445118221,0.845,3103.3,3102.8,0.0008012]
[1767445118673,2.95398616,3103.2,3102.8,0.0008012]
[1767445122166,0.845,3103.3,3102.8,0.0008012]
[1767445122472,0.845,3103.4,3102.8,2.87521449]
[1767445122673,0.845,3103.4,3102.8,3.16595894]
[1767445122838,0.845,3103.4,3102.8,2.87521449]
[1767445123664,3.79898616,3103.4,3102.8,2.87521449]
[1767445124946,2.95398616,3103.3,3102.8,0.0008012]
[1767445125142,0.845,3103.4,3102.8,2.87521449]
[1767445125348,2.95398616,3103.3,3102.8,0.0008012]
[1767445125843,3.33388478,3103.3,3102.8,0.0008012]
[1767445126048,3.33388478,3103.3,3102.8,0.0018012]
[1767445127673,0.37989862,3103.3,3102.8,2.87621449]
[1767445127853,2.95398616,3103.3,3102.8,0.0018012]
[1767445128278,0.845,3103.4,3102.8,2.87621449]
[1767445128979,2.95398616,3103.3,3102.8,0.0018012]
[1767445129168,2.95398616,3103.1,3102.8,0.0018012]
[1767445129679,0.00080128,3103.6,3102.8,2.87621449]
[1767445129878,2.95478744,3103.6,3102.8,2.87621449]
[1767445130378,2.95478744,3103.6,3102.8,6.09908323]
[1767445130577,3.86805362,3103.6,3102.8,6.09908323]
[1767445132575,0.00066013,3103.9,3103.4,2.87441329]
[1767445132779,0.00280096,3104.0,3103.4,2.87441329]
[1767445133152,0.002,3104.3,3103.7,2.87441329]
[1767445134375,0.002,3103.8,3103.7,2.87441329]
[1767445134684,0.002,3104.3,3103.7,2.87441329]
[1767445135670,0.002,3104.3,3103.6,6.15015448]
[1767445135671,0.28293172,3104.3,3103.6,6.15015448]
[1767445135876,0.002,3104.3,3103.7,3.22186951]
[1767445136047,0.002,3104.3,3103.7,6.14917808]
[1767445136547,0.002,3104.3,3103.8,2.92730857]
[1767445137175,30.002,3104.3,3103.8,2.92730857]
[1767445137672,30.002,3104.3,3103.7,3.22186951]
[1767445137673,30.002,3104.3,3103.6,3.22282649]
[1767445138043,30.002,3104.3,3103.6,0.00080104]
[1767445138246,30.002,3104.3,3103.6,0.61581849]
[1767445138473,0.00080128,3104.9,3103.6,0.61581849]
[1767445138674,2.80451637,3105.1,3104.5,0.00080136]
[1767445138846,2.80331773,3104.9,3104.1,6.44309138]
[1767445139352,3.64751637,3104.8,3104.1,3.22154569]
[1767445140553,0.84580136,3104.9,3104.1,9.96788311]
[1767445140753,4.32382466,3104.9,3104.1,10.96475152]
[1767445140955,4.32382466,3104.9,3104.1,7.74320583]
[1767445141371,4.32582466,3104.9,3104.1,7.74320583]
[1767445141576,4.32582466,3104.9,3104.0,0.00080096]
[1767445142687,3.4780233,3104.7,3104.0,0.00080096]
[1767445144676,6.69898402,3104.7,3104.0,0.00080096]
[1767445144983,3.4780233,3104.6,3104.0,0.00080096]
[1767445147780,6.69906171,3104.6,3104.0,0.00080096]
[1767445148079,4.14792947,3104.5,3104.0,0.00080096]
[1767445148284,0.845,3104.4,3104.0,0.00080096]
[1767445150284,4.3230233,3104.4,3104.0,0.00080096]
[1767445151186,0.002,3104.6,3104.1,3.52479173]
[1767445151484,0.845,3104.7,3104.3,3.52479173]
[1767445151780,0.845,3104.7,3104.1,3.52479173]
[1767445151993,0.845,3104.7,3104.2,0.35255927]
[1767445152864,3.4780233,3104.6,3104.0,0.00080096]
[1767445153479,3.4780233,3104.6,3103.2,0.00080136]
[1767445153680,3.47882434,3104.0,3103.2,0.00080136]
[1767445153888,0.845,3103.9,3103.3,3.52479173]
[1767445154179,3.47882426,3104.4,3103.6,0.00080112]
[1767445155172,6.70007513,3104.4,3103.6,0.00080112]
[1767445156190,3.47882426,3104.4,3103.6,0.00080112]
[1767445160802,3.4780233,3104.3,3103.6,0.00080112]
[1767445162270,3.4780233,3104.1,3103.6,0.00080112]
[1767445162589,3.4780233,3103.9,3103.6,0.00080112]
[1767445164998,6.6997837,3103.9,3103.6,0.00080112]
[1767445165298,3.4780233,3103.8,3103.6,0.00080112]
[1767445167171,3.2217604,3103.9,3103.6,0.00080112]
[1767445167907,8.53677178,3104.0,3103.6,0.00080112]
[1767445168973,0.54011486,3103.9,3103.6,0.00080112]
[1767445169814,3.52970072,3103.8,3103.6,0.00080112]
[1767445169985,3.52970072,3103.7,3103.6,0.00080112]
[1767445171405,3.52970072,3103.5,3102.8,0.0018012]
[1767445171616,3.52970072,3103.3,3102.8,0.0018012]
[1767445173607,3.52970072,3103.2,3102.8,0.0018012]
[1767445176685,0.845,3103.4,3102.8,3.55146208]
[1767445176885,0.845,3103.4,3102.9,0.7101123]
[1767445177685,0.00080136,3103.6,3103.1,6.26867825]
[1767445177885,0.845,3103.5,3103.2,3.54966088]
[1767445178095,0.00080136,3103.6,3103.2,3.54966088]
[1767445178293,0.00080136,3103.6,3103.2,0.0322248]
[1767445178493,0.00080136,3103.6,3103.3,0.59737581]
[1767445178698,6.31,3103.8,3103.2,0.03302624]
[1767445179019,6.31,3103.8,3103.2,3.25547174]
[1767445179720,6.31,3103.8,3103.2,0.03302624]
[1767445180927,0.845,3103.9,3103.3,3.54966088]
[1767445184531,0.845,3103.9,3103.3,6.7720013]
[1767445184717,0.845,3103.9,3103.3,8.04666352]
[1767445186598,0.847,3103.9,3103.5,1.5]
[1767445188904,0.002,3103.9,3103.6,3.54966088]
[1767445189131,0.002,3103.9,3103.5,1.5]
[1767445190934,3.53170072,3103.9,3103.5,1.5]
[1767445192130,0.002,3103.9,3103.5,4.72216499]
[1767445192346,0.002,3103.9,3103.6,0.4722165]
[1767445192643,0.002,3103.9,3103.6,4.02187738]
[1767445192826,0.002,3103.9,3103.6,0.4722165]
[1767445193000,0.002,3103.9,3103.5,1.5]
[1767445193441,0.002,3103.9,3103.5,4.72215931]
[1767445193609,0.845,3104.1,3103.6,3.55046208]
[1767445193937,0.845,3104.1,3103.6,0.0008012]
[1767445194304,0.002,3103.9,3103.6,0.0008012]
[1767445194504,4.37470072,3104.1,3103.6,1.10318475]
[1767445195848,6.31,3104.2,3103.7,6.26867825]
[1767445196055,3.53170072,3104.3,3103.7,6.26867825]
[1767445197646,3.53170072,3104.3,3103.7,9.49059354]
[1767445198019,0.002,3104.3,3103.8,3.54966088]
[1767445198250,0.00080096,3104.4,3103.9,4.82091632]
[1767445198580,0.002,3104.7,3104.1,3.54966088]
[1767445198850,3.53170072,3104.7,3104.1,3.54966088]
[1767445200557,3.53170072,3104.7,3104.0,0.00080104]
[1767445200753,4.20722864,3104.7,3104.0,0.00080104]
[1767445200929,3.58193237,3104.6,3104.0,0.00080104]
[1767445201550,3.58193237,3104.5,3104.0,0.00080104]
[1767445202063,3.58193237,3104.5,3103.2,3.22320148]
[1767445202064,3.58193237,3104.2,3103.2,0.00080144]
[1767445202226,3.58273357,3104.0,3103.2,0.00080144]
[1767445203557,3.58193237,3103.7,3103.2,0.00080144]
[1767445203860,3.58193237,3103.5,3103.2,0.00080144]
[1767445204060,3.58193237,3103.3,3103.2,0.00080144]
[1767445206168,3.58193237,3103.3,3102.3,6.59790708]
[1767445206335,3.94012561,3103.3,3102.3,6.59790708]
[1767445206740,3.94012561,3103.3,3102.5,3.37371293]
[1767445206948,7.16253685,3103.3,3102.5,3.37371293]
[1767445207762,3.58193237,3103.2,3102.3,0.00080215]
[1767445208429,3.58193237,3103.1,3102.3,0.00080215]
[1767445209063,9.16414611,3103.2,3102.3,0.00080215]
[1767445209064,3.58193237,3102.9,3102.3,0.00080215]
[1767445211976,6.80457791,3103.1,3102.3,3.37451508]
[1767445212475,3.58193237,3103.1,3102.3,3.37451508]
[1767445212643,0.0008012,3103.2,3102.3,3.37451508]
[1767445212844,0.0008012,3103.2,3102.5,3.37371293]
[1767445213054,0.0008012,3103.2,3102.6,0.33737129]
[1767445213255,3.58273357,3103.2,3102.6,0.33737129]
[1767445215955,6.80524934,3103.2,3102.6,0.33737129]
[1767445216154,3.58273357,3103.2,3102.5,3.37371293]
[1767445217381,0.0008012,3103.2,3102.5,3.37371293]
[1767445219659,0.0008012,3103.2,3102.6,3.37371293]
[1767445221077,0.00080144,3103.6,3103.1,3.37371293]
[1767445221983,0.002,3103.9,3103.2,3.37451445]
[1767445222153,0.002,3103.9,3103.4,3.37371293]
[1767445222562,3.58273341,3104.4,3103.6,0.00080128]
[1767445222753,3.58193237,3104.3,3103.6,0.00080128]
[1767445224188,3.58193237,3104.2,3103.6,0.00080128]
[1767445225424,0.00146251,3105.7,3105.5,1.58308812]
[1767445225718,3.58193237,3106.1,3105.5,0.00080064]
[1767445225880,0.845,3106.0,3105.5,0.00080064]
[1767445226310,3.58193237,3105.9,3105.5,0.00080064]
[1767445227317,0.845,3105.8,3105.5,0.00080064]
[1767445229297,4.06482023,3105.8,3105.5,0.00080064]
[1767445229499,0.76467526,3105.7,3105.5,0.00080064]
[1767445230893,3.98457722,3105.7,3105.0,0.00080056]
[1767445231114,3.25463216,3105.3,3104.3,3.44765916]
[1767445231327,4.09963216,3105.2,3104.3,3.44765916]
[1767445231525,3.66459538,3105.1,3104.1,3.22154064]
[1767445233020,3.66459538,3105.1,3104.2,3.24135613]
[1767445233828,3.66459538,3105.1,3104.2,0.01991635]
[1767445234234,3.25463216,3105.0,3104.2,0.01991635]
[1767445235530,3.25463216,3104.9,3104.2,0.01991635]
[1767445236504,6.47545153,3104.8,3104.2,0.01991635]
[1767445236704,4.09963216,3104.7,3104.2,0.01991635]
[1767445236925,3.98667731,3104.6,3104.2,0.01991635]
[1767445238603,7.20778615,3104.6,3104.2,0.01991635]
[1767445239026,3.98667731,3104.6,3104.2,0.01991635]
[1767445239221,4.06594009,3104.7,3104.2,0.01991635]
[1767445240520,3.25463216,3104.6,3104.2,1e-08]
[1767445240834,3.25463216,3104.4,3104.2,1e-08]
[1767445241032,3.22113061,3104.5,3104.2,1e-08]
[1767445241233,0.845,3104.7,3104.2,1e-08]
[1767445241406,0.845,3104.7,3104.0,0.00080112]
[1767445241734,4.47279532,3104.7,3104.0,0.00080112]
[1767445242117,7.72742748,3104.7,3104.0,0.00080112]
[1767445243536,7.72746687,3104.7,3104.0,0.00080112]
[1767445244738,3.25463216,3104.6,3104.0,0.00080112]
[1767445246729,6.47576277,3104.5,3104.0,0.00080112]
[1767445246929,4.22431925,3104.4,3104.0,0.00080112]
[1767445248647,7.44558502,3104.4,3104.0,0.00180112]
[1767445248828,4.22431925,3104.4,3104.0,0.00180112]
[1767445249456,3.25463216,3104.4,3104.0,0.00180112]
[1767445252737,3.22109791,3104.6,3104.0,0.00180112]
[1767445255339,6.47573007,3104.6,3104.0,0.00180112]
[1767445256049,3.25463216,3104.5,3104.0,0.00180112]
[1767445257923,3.25463216,3104.4,3104.0,0.00180112]
[1767445259932,6.53143023,3104.6,3104.0,0.00180112]
[1767445260231,0.77833009,3104.5,3104.0,0.00180112]
[1767445261132,4.08869755,3104.5,3104.0,0.00180112]
[1767445262123,7.3098349,3104.5,3104.0,0.00180112]
[1767445262622,0.002,3104.4,3104.0,0.00180112]
[1767445267768,3.31236746,3104.4,3103.6,0.00080128]
[1767445267971,3.31036746,3104.2,3103.6,0.00080128]
[1767445268135,0.845,3104.1,3103.6,0.00080128]
[1767445268847,0.845,3104.1,3103.6,3.26652382]
[1767445269870,4.06661609,3104.1,3103.6,3.26652382]
[1767445270253,7.28823218,3104.1,3103.6,0.00080128]
[1767445270456,11.73157795,3104.1,3103.6,0.00080128]
[1767445270966,11.73157795,3104.1,3104.0,0.001]
[1767445270967,8.50996186,3104.1,3104.0,0.001]
[1767445272169,3.31036746,3104.0,3103.6,0.00080128]
[1767445275760,5.1995944,3104.1,3103.6,0.00080128]
[1767445276975,3.31036746,3104.0,3103.6,0.00080128]
[1767445277177,0.00080152,3103.6,3103.1,3.21999795]
[1767445277503,3.31036746,3103.7,3103.2,0.59483529]
[1767445277774,3.31036746,3103.7,3103.5,0.001]
[1767445277974,3.31036746,3103.7,3103.2,0.0008016]
[1767445278277,0.0008016,3103.6,3103.1,3.26572254]
[1767445278772,0.0008016,3103.6,3103.1,3.59239479]
[1767445281675,0.0008016,3103.6,3103.1,0.32667225]
[1767445281854,0.0008016,3103.6,3103.0,3.26672254]
[1767445285083,0.0028016,3103.6,3103.0,3.26672254]
[1767445296388,0.845,3103.5,3103.0,3.26672254]
[1767445296580,0.845,3103.5,3103.1,3.01848502]
[1767445310778,4.04804745,3103.5,3103.0,0.001]
[1767445312910,3.20304745,3103.4,3103.0,0.001]
[1767445315073,3.20304745,3103.3,3103.0,0.001]
[1767445315496,3.20304745,3103.2,3103.0,0.001]
[1767445316799,3.20384873,3103.2,3102.3,0.00180215]
[1767445317507,3.20384873,3103.2,3102.3,3.22518545]
[1767445317805,3.20304745,3103.1,3102.3,0.00180215]
[1767445318006,3.20304745,3102.9,3102.3,0.00180215]
[1767445319278,3.20304745,3102.9,3102.3,5.94454022]
[1767445319907,0.845,3103.0,3102.4,2.88549425]
[1767445322085,3.62328706,3103.0,3102.4,2.88549425]
[1767445323719,3.62328706,3103.0,3102.4,2.88649425]
[1767445324219,0.845,3103.0,3102.4,2.88649425]
[1767445326412,0.845,3103.0,3102.4,0.001]
[1767445326610,2.77828706,3102.9,3102.4,0.001]
[1767445326930,0.845,3103.0,3102.4,2.87293923]
[1767445327098,2.77828706,3102.9,3102.4,0.001]
[1767445332126,0.847,3103.0,3102.4,0.001]
[1767445332438,0.847,3103.0,3102.4,2.80730509]
[1767445333310,0.847,3103.0,3102.4,3.3601497]
[1767445333724,0.847,3103.0,3102.5,2.79545047]
[1767445335637,0.8453885,3103.0,3102.5,2.79545047]
[1767445338438,0.8453885,3103.0,3102.6,2.77383817]
[1767445343339,0.8453885,3103.0,3102.6,0.03223103]
[1767445344737,0.8453885,3103.0,3102.5,2.67770165]
[1767445349448,0.8453885,3103.0,3102.5,3.32336758]
[1767445350325,0.8453885,3103.0,3102.5,6.54651314]
[1767445350717,0.8453885,3103.0,3102.6,0.03223103]
[1767445351225,3.69928652,3103.0,3102.4,0.001]
[1767445351425,0.8453885,3103.0,3102.4,0.001]
[1767445351642,0.8453885,3103.0,3102.4,2.60615151]
[1767445352144,3.69928652,3103.0,3102.4,2.60615151]
[1767445352653,3.69928652,3103.0,3102.4,0.001]
[1767445358140,0.002,3103.0,3102.4,3.11586117]
[1767445359366,0.002,3103.0,3102.5,3.22320709]
[1767445359521,0.002,3103.0,3102.5,5.7457262]
[1767445360138,0.002,3103.0,3102.5,2.52251911]
[1767445361228,0.002,3103.0,3102.5,3.15881241]
[1767445361973,0.002,3103.0,3102.5,6.3820013]
[1767445363180,0.002,3103.0,3102.5,6.3830013]
[1767445363467,0.002,3103.0,3102.5,3.15981241]
[1767445365100,2.85589802,3103.0,3102.5,0.001]
[1767445365443,2.85589802,3103.0,3102.3,0.00180215]
[1767445365671,2.85589802,3103.0,3102.1,3.2236227]
[1767445365962,0.00080215,3102.7,3102.1,6.0131461]
[1767445366362,2.85470017,3102.7,3102.1,6.0131461]
[1767445366660,2.85470017,3102.7,3102.2,1.30167726]
[1767445367630,2.85470017,3102.7,3102.2,4.52510525]
[1767445369467,1e-08,3102.7,3102.2,4.52510525]
[1767445369667,1e-08,3102.7,3102.3,0.00080223]
[1767445369960,0.002,3103.0,3102.4,2.7895234]
[1767445374193,0.002,3103.0,3102.4,2.7905234]
[1767445374355,2.85589802,3103.0,3102.4,0.001]
[1767445375061,2.85389802,3102.6,3101.9,0.001]
[1767445375285,0.00080223,3102.7,3101.9,0.001]
[1767445375286,3.69889802,3102.5,3101.9,0.001]
[1767445378991,6.92212258,3102.5,3101.9,0.001]
[1767445379196,2.85389802,3102.4,3101.9,0.001]
[1767445379586,3.69889802,3102.5,3101.9,2.7905234]
[1767445379765,2.76103096,3102.4,3101.9,0.001]
[1767445381698,0.845,3102.5,3101.9,0.001]
[1767445383467,3.60603096,3102.5,3101.9,0.001]
[1767445386299,3.60603096,3102.5,3101.9,2.77433492]
[1767445386499,0.845,3102.5,3102.0,2.80557218]
[1767445386797,0.00080223,3102.7,3102.3,2.77333492]
[1767445387001,0.00080223,3102.7,3102.1,2.77333492]
[1767445387375,2.76303096,3103.0,3102.3,2.77333492]
[1767445387705,2.76303096,3103.0,3102.3,2.77413723]
[1767445388077,2.76303096,3103.0,3102.3,0.00080231]
[1767445388278,2.76103096,3102.9,3102.3,0.00080231]
[1767445388498,2.76103096,3102.9,3102.3,0.60057012]
[1767445389713,2.76103096,3102.9,3102.3,3.37390504]
[1767445391402,3.22470504,3103.0,3102.3,3.37390504]
[1767445392907,0.002,3103.0,3102.3,3.37390504]
[1767445393605,0.002,3103.0,3102.4,2.77333492]
[1767445393903,0.002,3103.0,3102.6,2.77333492]
[1767445395205,0.002,3103.0,3102.6,5.99636988]
[1767445395593,0.002,3103.0,3102.6,2.77333492]
[1767445395908,0.002,3103.0,3102.7,2.77333492]
[1767445396097,0.00080128,3103.2,3102.8,2.77333492]
[1767445396292,0.00080128,3103.2,3102.8,3.05066841]
[1767445397005,5.98523757,3103.5,3103.0,2.77333492]
[1767445397006,0.002,3103.5,3103.0,2.77333492]
[1767445407525,0.002,3103.5,3103.1,2.77333492]
[1767445407725,0.16818655,3103.9,3103.2,2.77333492]
[1767445407931,0.16818655,3103.9,3103.4,2.77333492]
[1767445408220,2.76183224,3104.0,3103.4,2.77333492]
[1767445408616,0.00080128,3104.0,3103.4,2.77333492]
[1767445410621,0.00080128,3104.0,3103.4,8.71592211]
[1767445410939,0.002,3104.3,3103.6,2.69710889]
[1767445410940,0.847,3104.3,3103.6,2.69710889]
[1767445411135,0.847,3104.3,3103.7,2.69630753]
[1767445411536,0.002,3104.0,3103.7,2.69630753]
[1767445411734,0.847,3104.3,3103.9,2.69630753]
[1767445413317,0.847,3104.3,3103.7,8.63855035]
[1767445413649,0.847,3104.3,3103.8,2.69630753]
[1767445413846,0.847,3104.3,3103.9,3.56016256]
[1767445414344,0.847,3104.3,3104.0,2.69630753]
[1767445417535,0.847,3104.3,3104.0,2.69430753]
[1767445417845,0.002,3104.3,3104.0,2.69430753]
[1767445420048,0.002,3104.3,3104.0,2.69530753]
[1767445421121,0.002,3104.3,3104.0,2.69330753]
[1767445421648,6.46920184,3104.7,3104.0,2.69410873]
[1767445421846,7.69352856,3104.7,3104.0,2.69410873]
[1767445424061,2.54846741,3104.3,3103.6,0.00080136]
[1767445424622,2.54846741,3104.1,3103.6,0.00080136]
[1767445428243,5.76984247,3104.3,3103.6,2.69710889]
[1767445429255,5.77184247,3104.3,3103.6,2.69710889]
[1767445429964,6.18295175,3104.3,3103.6,2.69710889]
[1767445431867,2.54846741,3104.2,3103.6,2.69710889]
[1767445436971,5.76991002,3104.2,3103.6,2.69710889]
[1767445437269,2.54846741,3104.2,3103.6,2.69710889]
[1767445438768,2.54846741,3104.2,3103.6,0.00080136]
[1767445439238,2.54846741,3104.2,3103.6,2.69710889]
[1767445439433,3.63448516,3104.3,3103.6,2.69710889]
[1767445440187,0.41310928,3104.3,3103.6,2.69710889]
[1767445440378,0.002,3104.3,3103.9,2.38872971]
[1767445440667,0.0008012,3104.4,3104.1,2.38872971]
[1767445441267,0.002,3104.8,3104.2,2.38872971]
[1767445441454,0.002,3104.8,3104.2,2.89971465]
[1767445443441,0.002,3104.8,3104.3,2.38872971]
[1767445444753,0.00280144,3104.9,3104.6,2.38872971]
[1767445445369,0.00280144,3104.9,3104.3,8.83139756]
[1767445445545,0.002,3105.3,3104.5,2.38872971]
[1767445445750,0.002,3105.3,3104.7,2.38872971]
[1767445446690,0.002,3104.8,3104.7,2.38872971]
[1767445446983,0.002,3105.3,3104.8,2.38872971]
[1767445451391,0.002,3105.3,3104.9,2.38872971]
[1767445451597,0.00146259,3105.6,3105.1,2.38872971]
[1767445451807,0.00146259,3105.6,3105.1,2.62768274]
[1767445452591,0.002,3105.7,3105.4,2.38872971]
[1767445453319,0.002,3105.7,3105.1,2.38872971]
[1767445453596,2.58975401,3105.7,3105.0,0.00080064]
[1767445453894,2.58775401,3105.5,3105.0,0.00080064]
[1767445454789,2.58775401,3105.3,3105.0,0.00080064]
[1767445454961,2.58975401,3105.3,3105.0,0.00080064]
[1767445457389,5.80815849,3105.2,3105.0,0.00080064]
[1767445463609,2.58775401,3105.2,3105.0,0.00080064]
[1767445464111,3.22234717,3105.3,3105.0,0.00080064]
[1767445464276,0.90019454,3105.2,3105.0,0.00080064]
[1767445465474,3.44249167,3105.2,3105.0,0.00080064]
[1767445466104,4.12064419,3105.2,3105.0,0.00080064]
[1767445469891,0.002,3105.3,3105.0,2.38659381]
[1767445470086,3.22231183,3105.3,3105.0,0.00080064]
[1767445471019,0.002,3105.3,3105.0,0.00080064]
[1767445472522,0.002,3105.3,3105.0,2.47824555]
[1767445472777,0.002,3105.7,3105.2,2.47744491]
[1767445475329,0.002,3105.7,3105.3,2.47744491]
[1767445477119,0.002,3105.7,3105.4,2.47744491]
[1767445477435,0.00080064,3105.9,3105.4,2.47744491]
[1767445481220,0.00080064,3105.9,3105.2,2.47744491]
[1767445481420,0.00080064,3105.9,3105.2,3.07219897]
[1767445481731,0.00080064,3105.9,3105.3,2.47744491]
[1767445481925,0.00080064,3105.9,3105.4,2.47744491]
[1767445482241,0.00080064,3105.9,3105.5,2.47744491]
[1767445488443,0.00080064,3105.9,3105.3,2.47744491]
[1767445488642,0.00080064,3105.9,3105.4,3.10670433]
[1767445489235,0.00080064,3105.9,3105.5,2.47744491]
[1767445490448,0.00080064,3105.9,3105.4,3.10670433]
[1767445491444,0.00080064,3105.9,3105.5,2.47744491]
[1767445494845,0.00080064,3105.9,3105.5,2.47844491]
[1767445495028,0.00080064,3105.9,3105.6,2.47744491]
[1767445496353,0.002,3106.1,3105.6,2.5096448]
[1767445496747,0.002,3106.1,3105.6,2.47744491]
[1767445498033,0.002,3106.1,3105.7,2.50964377]
[1767445498233,0.002,3106.1,3105.7,2.47744491]
[1767445501456,0.002,3106.1,3105.5,0.00180072]
[1767445501457,2.81675444,3106.1,3105.5,0.00180072]
[1767445502628,2.26595253,3105.9,3105.5,0.00180072]
[1767445503764,2.26675325,3105.9,3105.0,2.45985809]
[1767445504557,2.26675325,3105.9,3105.0,0.00180064]
[1767445504749,2.26595253,3105.6,3105.0,0.00180064]
[1767445506974,5.48604591,3105.5,3105.0,0.00180064]
[1767445507174,2.26595253,3105.4,3105.0,0.00180064]
[1767445509290,5.48617133,3105.4,3105.0,0.00180064]
[1767445509792,2.26595253,3105.4,3105.0,0.00180064]
[1767445509992,6.10221897,3105.4,3105.0,0.00180064]
[1767445510984,2.26595253,3105.3,3105.0,0.00180064]
[1767445511481,5.48635575,3105.3,3105.0,0.00180064]
[1767445512184,0.6160574,3105.4,3105.0,2.45985809]
[1767445512369,2.26595253,3105.4,3105.0,2.45985809]
[1767445513285,5.48619485,3105.4,3105.0,2.45985809]
[1767445513479,3.22024232,3105.4,3105.0,2.45985809]
[1767445513684,5.48619485,3105.4,3105.0,2.45985809]
[1767445513980,5.48619485,3105.4,3105.0,0.00180064]
[1767445514155,0.63311949,3105.3,3105.0,0.00180064]
[1767445520270,6.11938347,3105.3,3105.0,0.00180064]
[1767445520470,5.48626398,3105.3,3105.0,0.00180064]
[1767445524996,2.26595253,3105.2,3104.6,0.001]
[1767445525995,2.26595253,3105.0,3104.6,0.001]
[1767445526196,0.87068879,3105.0,3104.6,0.001]
[1767445529599,0.87068879,3105.0,3104.6,2.45905745]
[1767445531208,3.2204435,3105.2,3104.6,2.45905745]
[1767445531882,8.90133671,3105.2,3104.6,0.001]
[1767445532283,5.68087628,3105.2,3104.6,0.001]
[1767445535191,5.68087628,3105.2,3104.6,2.39786612]
[1767445537204,5.68087628,3105.2,3104.6,0.001]
[1767445537503,0.89011813,3105.1,3104.6,0.001]
[1767445539410,6.57106636,3105.1,3104.6,0.001]
[1767445539783,0.89011813,3105.1,3104.6,0.001]
[1767445539976,0.89011813,3105.1,3104.6,2.39786612]
[1767445544007,4.11063534,3105.1,3104.6,2.39786612]
[1767445544303,0.41106353,3105.0,3104.6,0.001]
[1767445548912,3.63169854,3105.0,3104.6,0.001]
[1767445549104,2.87149631,3105.0,3104.6,0.001]
[1767445551915,0.41106353,3105.0,3104.6,0.001]
[1767445556393,5.68088401,3105.2,3104.6,0.001]
[1767445556720,0.002,3105.0,3104.6,0.001]
[1767445560328,0.002,3105.0,3104.6,2.34001562]
[1767445561108,0.002,3105.0,3104.6,0.001]
[1767445561626,0.002,3105.0,3104.6,2.34001562]
[1767445562111,0.5702884,3105.0,3104.6,0.001]
[1767445562852,2.35980881,3104.9,3104.6,0.001]
[1767445563028,2.36061033,3104.9,3104.2,0.001]
[1767445564130,2.35980881,3104.7,3104.2,0.001]
[1767445564324,2.35980881,3104.5,3104.2,0.001]
[1767445564818,3.23995357,3104.6,3104.2,0.001]
[1767445565425,0.88014476,3104.6,3104.2,0.001]
[1767445566626,2.35980881,3104.8,3104.2,0.001]
[1767445567030,3.22086146,3104.8,3104.2,2.34001562]
[1767445568340,6.44233926,3104.9,3104.2,2.34001562]
[1767445568504,8.80214807,3104.9,3104.2,2.34001562]
[1767445568704,1.02174365,3104.8,3104.2,2.34001562]
[1767445569745,3.38155246,3104.8,3104.2,2.34001562]
[1767445570929,3.22092311,3104.7,3104.2,2.34001562]
[1767445571129,3.22092311,3104.7,3104.2,0.001]
[1767445572146,8.80165503,3104.7,3104.2,0.001]
[1767445572308,2.35980881,3104.5,3104.2,0.001]
[1767445572511,0.00080152,3104.9,3104.2,2.34001562]
[1767445572833,0.00080152,3104.9,3104.3,2.33901562]
[1767445573015,0.00080152,3104.9,3104.5,2.33901562]
[1767445573219,0.002,3105.0,3104.7,2.33901562]
[1767445581243,0.002,3105.0,3104.8,2.33901562]
[1767445581434,0.84580064,3105.4,3105.0,2.33901562]
[1767445582029,4.06599901,3105.4,3105.0,2.33901562]
[1767445582461,0.84580064,3105.4,3105.0,2.33901562]
[1767445584149,0.84780064,3105.4,3105.0,2.33901562]
[1767445585636,0.002,3105.6,3105.4,2.33901562]
[1767445588056,0.002,3105.6,3105.1,2.33901562]
[1767445596352,0.002,3105.6,3105.0,0.5567842]
[1767445596662,0.002,3105.6,3105.0,3.77738909]
[1767445596972,0.002,3105.6,3105.0,0.5567842]
[1767445597783,0.002,3105.6,3105.0,3.77737484]
[1767445597952,0.002,3105.6,3105.0,6.23956797]
[1767445598154,0.002,3105.6,3105.1,3.8444643]
[1767445599680,0.002,3105.6,3105.2,2.46219313]
[1767445605778,0.002,3105.6,3105.1,0.6239568]
[1767445606475,0.002,3105.6,3105.0,3.01997733]
[1767445607092,0.002,3105.6,3105.0,6.24057606]
[1767445610282,0.002,3105.6,3105.1,2.46219313]
[1767445612385,2.3407098,3105.4,3105.0,0.00180072]
[1767445612695,0.87808966,3105.3,3105.0,0.00180072]
[1767445613659,3.21879946,3105.3,3105.0,0.00180072]
[1767445613853,2.3407098,3105.2,3105.0,0.00180072]
[1767445614880,3.22043933,3105.2,3105.0,0.00180072]
[1767445618983,3.22043933,3105.2,3104.7,2.46219313]
[1767445619168,4.2708943,3105.2,3104.7,2.46219313]
[1767445619681,6.6116041,3105.2,3104.5,2.46299473]
[1767445620288,3.39116477,3105.2,3104.5,2.46299473]
[1767445620488,4.06601374,3105.4,3104.6,2.42920986]
[1767445620489,5.54101194,3105.4,3104.6,2.42920986]
[1767445620711,6.38601194,3105.4,3104.6,2.42920986]
[1767445621005,4.06603478,3105.4,3104.6,2.42920986]
[1767445621215,4.06603478,3105.4,3105.0,0.001]
[1767445622480,4.06600342,3105.4,3105.0,2.3979996]
[1767445622679,4.79480537,3105.4,3105.0,2.3979996]
[1767445623781,7.11478253,3105.4,3105.0,0.001]
[1767445624809,4.79480537,3105.4,3105.0,0.001]
[1767445624966,0.00080072,3105.4,3105.0,2.3979996]